[Event "Live Chess"]
[Site "Chess.com"]
[Date "2021.02.28"]
[Round "-"]
[White "Whisson, Max"]
[Black "Bhaskar, Sriram"]
[Result "1-0"]
[BlackElo "992"]
[CurrentPosition "2R4k/6p1/7p/8/4Q3/1P3P1P/4K1P1/8 b - -"]
[ECO "C23"]
[ECOUrl "https://www.chess.com/openings/Bishops-Opening"]
[EndDate "2021.02.28"]
[EndTime "12:18:03"]
[Link "https://www.chess.com/live/game/8249705525"]
[StartTime "11:15:54"]
[Termination "ChessMwis won by checkmate"]
[TimeControl "1500+10"]
[Timezone "UTC"]
[UTCDate "2021.02.28"]
[UTCTime "11:15:54"]
[WhiteElo "1232"]

1. e4 { [%clk 0:25:10] } 1... e5 { [%clk 0:25:10] } 2. Bc4 { [%clk 0:25:04.1] } 2... Nc6 { [%clk 0:25:09.7] } 3. Nf3 { [%clk 0:25:03.3] } 3... Bc5 { [%clk 0:25:11.8] } 4. d3 { [%clk 0:24:42.7] } 4... h6 { [%clk 0:25:05.3] } 5. a3 { [%clk 0:24:19.6] } 5... Nd4 { [%clk 0:25:04.8] } 6. Nbd2 { [%clk 0:23:31.4] } 6... Nxf3+ { [%clk 0:25:04.1] } 7. Nxf3 { [%clk 0:23:37] } 7... d6 { [%clk 0:25:08.5] } 8. b4 { [%clk 0:23:39] } 8... Bb6 { [%clk 0:25:10.9] } 9. Bb2 { [%clk 0:23:45.3] } 9... Nf6 { [%clk 0:25:15.3] } 10. h3 { [%clk 0:23:48.9] } 10... O-O { [%clk 0:25:19.2] } 11. O-O { [%clk 0:23:41.7] } 11... Be6 { [%clk 0:25:13.8] } 12. Bb3 { [%clk 0:23:05.3] } 12... Bxb3 { [%clk 0:25:08.7] } 13. cxb3 { [%clk 0:23:09.9] } 13... c6 { [%clk 0:24:40.3] } 14. d4 { [%clk 0:23:12.8] } 14... Nxe4 { [%clk 0:24:19.9] } 15. dxe5 { [%clk 0:21:50.8] } 15... d5 { [%clk 0:23:13.9] } 16. Nd4 { [%clk 0:20:33.7] } 16... Qd7 { [%clk 0:22:01.9] } 17. a4 { [%clk 0:18:28.6] } 17... a6 { [%clk 0:20:46.5] } 18. Ba3 { [%clk 0:15:58.3] } 18... Rfe8 { [%clk 0:19:37.2] } 19. Nf3 { [%clk 0:15:07] } 19... f6 { [%clk 0:17:50.4] } 20. Bb2 { [%clk 0:14:27] } 20... Qe6 { [%clk 0:14:38.2] } 21. exf6 { [%clk 0:11:51.3] } 21... Nxf6 { [%clk 0:14:40.2] } 22. Bd4 { [%clk 0:11:00.5] } 22... Bxd4 { [%clk 0:13:27.4] } 23. Nxd4 { [%clk 0:10:49.5] } 23... Qd7 { [%clk 0:13:06.6] } 24. Qd3 { [%clk 0:09:15.7] } 24... Ne4 { [%clk 0:11:56.2] } 25. b5 { [%clk 0:09:12.1] } 25... a5 { [%clk 0:10:13.6] } 26. bxc6 { [%clk 0:09:07.3] } 26... bxc6 { [%clk 0:10:14.3] } 27. Rac1 { [%clk 0:08:52.3] } 27... c5 { [%clk 0:08:43.4] } 28. Nb5 { [%clk 0:08:21.4] } 28... Red8 { [%clk 0:07:23.7] } 29. f3 { [%clk 0:08:10.6] } 29... Ng3 { [%clk 0:06:29.4] } 30. Rfd1 { [%clk 0:07:34.2] } 30... Rac8 { [%clk 0:05:34] } 31. Kf2 { [%clk 0:05:38.6] } 31... Nf5 { [%clk 0:05:24.1] } 32. Nc3 { [%clk 0:05:26.6] } 32... Ne7 { [%clk 0:04:26.9] } 33. Ne2 { [%clk 0:04:43] } 33... d4 { [%clk 0:03:18.9] } 34. Qc4+ { [%clk 0:04:37.6] } 34... Kh8 { [%clk 0:02:52.8] } 35. Nf4 { [%clk 0:04:30] } 35... Qd6 { [%clk 0:02:01.5] } 36. Ne6 { [%clk 0:04:31] } 36... Rd7 { [%clk 0:01:40.1] } 37. Nxc5 { [%clk 0:04:24.2] } 37... Rxc5 { [%clk 0:01:43] } 38. Qxc5 { [%clk 0:04:31.3] } 38... Qxc5 { [%clk 0:01:50] } 39. Rxc5 { [%clk 0:04:39] } 39... Rb7 { [%clk 0:01:16.7] } 40. Rb1 { [%clk 0:04:41.9] } 40... d3 { [%clk 0:01:07] } 41. Ke3 { [%clk 0:04:43.7] } 41... Rd7 { [%clk 0:01:02.1] } 42. Rd1 { [%clk 0:04:48.4] } 42... Nd5+ { [%clk 0:00:56.6] } 43. Kd2 { [%clk 0:04:44.1] } 43... Nb4 { [%clk 0:00:46] } 44. Rxa5 { [%clk 0:04:40.4] } 44... Nc6 { [%clk 0:00:30.6] } 45. Rc5 { [%clk 0:04:39.5] } 45... Nb4 { [%clk 0:00:33.9] } 46. Ra1 { [%clk 0:04:38.2] } 46... Re7 { [%clk 0:00:33.5] } 47. Re1 { [%clk 0:04:33.9] } 47... Re2+ { [%clk 0:00:27.3] } 48. Rxe2 { [%clk 0:04:40.7] } 48... dxe2 { [%clk 0:00:35.3] } 49. Kxe2 { [%clk 0:04:48.8] } 49... Nc2 { [%clk 0:00:39.3] } 50. Rxc2 { [%clk 0:04:55.2] } 50... Kg8 { [%clk 0:00:39.5] } 51. a5 { [%clk 0:05:03.2] } 51... Kh7 { [%clk 0:00:47.3] } 52. a6 { [%clk 0:05:11.6] } 52... Kh8 { [%clk 0:00:55.5] } 53. a7 { [%clk 0:05:20.5] } 53... Kh7 { [%clk 0:01:03.3] } 54. a8=Q { [%clk 0:05:28.2] } 54... Kg6 { [%clk 0:01:09.6] } 55. Rc5 { [%clk 0:05:34.6] } 55... Kh7 { [%clk 0:01:17.8] } 56. Qe4+ { [%clk 0:05:36] } 56... Kh8 { [%clk 0:01:25.7] } 57. Rc8# { [%clk 0:05:44.3] } 1-0

[Event "Live Chess"]
[Site "Chess.com"]
[Date "2021.02.28"]
[Round "-"]
[White "Singh, Ishaan"]
[Black "Meadows, Henri"]
[Result "1/2-1/2"]
[BlackElo "1008"]
[CurrentPosition "8/8/8/5k2/6RK/1r6/8/8 w - -"]
[ECO "D00"]
[ECOUrl "https://www.chess.com/openings/Queens-Pawn-Opening-Accelerated-London-System"]
[EndDate "2021.02.28"]
[EndTime "11:36:41"]
[Link "https://www.chess.com/live/game/8249659479"]
[StartTime "11:12:36"]
[Termination "Game drawn by agreement"]
[TimeControl "1500+10"]
[Timezone "UTC"]
[UTCDate "2021.02.28"]
[UTCTime "11:12:36"]
[WhiteElo "734"]

1. d4 { [%clk 0:25:10] } 1... d5 { [%clk 0:25:10] } 2. Bf4 { [%clk 0:25:16.6] } 2... b6 { [%clk 0:25:07.8] } 3. e3 { [%clk 0:25:19.8] } 3... Bb7 { [%clk 0:25:15.5] } 4. Nf3 { [%clk 0:25:18.6] } 4... e6 { [%clk 0:25:22.2] } 5. Nc3 { [%clk 0:25:24.1] } 5... Nf6 { [%clk 0:25:30.1] } 6. Bd3 { [%clk 0:25:15.8] } 6... Be7 { [%clk 0:25:29.9] } 7. O-O { [%clk 0:25:01.5] } 7... O-O { [%clk 0:25:38.2] } 8. Re1 { [%clk 0:24:52.6] } 8... Nbd7 { [%clk 0:25:45.6] } 9. Re2 { [%clk 0:24:41.2] } 9... c5 { [%clk 0:25:53.5] } 10. Re1 { [%clk 0:24:33.6] } 10... c4 { [%clk 0:25:46.3] } 11. Be2 { [%clk 0:24:20.9] } 11... a5 { [%clk 0:25:52.4] } 12. Ne5 { [%clk 0:24:12.2] } 12... a4 { [%clk 0:25:49.4] } 13. Nb5 { [%clk 0:23:53.2] } 13... Ra5 { [%clk 0:24:27.8] } 14. Nxd7 { [%clk 0:23:48.4] } 14... Qxd7 { [%clk 0:24:23.6] } 15. Nc3 { [%clk 0:23:49.7] } 15... a3 { [%clk 0:24:27.4] } 16. b3 { [%clk 0:23:22.8] } 16... cxb3 { [%clk 0:24:29.7] } 17. Bb5 { [%clk 0:23:29.4] } 17... Rxb5 { [%clk 0:23:35.6] } 18. Nxb5 { [%clk 0:23:28.9] } 18... Qxb5 { [%clk 0:23:42] } 19. axb3 { [%clk 0:23:27.5] } 19... Ne4 { [%clk 0:23:32.3] } 20. Qe2 { [%clk 0:22:45.8] } 20... Qxe2 { [%clk 0:23:11.4] } 21. Rxe2 { [%clk 0:22:50.4] } 21... Ba6 { [%clk 0:23:19.6] } 22. Ree1 { [%clk 0:22:51.1] } 22... h6 { [%clk 0:23:08.4] } 23. f3 { [%clk 0:22:31.5] } 23... Nd2 { [%clk 0:22:39.1] } 24. e4 { [%clk 0:22:32.2] } 24... dxe4 { [%clk 0:22:42.1] } 25. Bxd2 { [%clk 0:22:39.6] } 25... exf3 { [%clk 0:22:42.1] } 26. g3 { [%clk 0:22:39.1] } 26... Rd8 { [%clk 0:22:22.8] } 27. c3 { [%clk 0:22:06.3] } 27... Rd5 { [%clk 0:22:10.5] } 28. Rf1 { [%clk 0:21:43.3] } 28... Rf5 { [%clk 0:22:14.5] } 29. b4 { [%clk 0:21:41.9] } 29... Bxf1 { [%clk 0:22:20.5] } 30. Kxf1 { [%clk 0:21:45.5] } 30... f2 { [%clk 0:22:22.9] } 31. Be3 { [%clk 0:21:51.4] } 31... Rf3 { [%clk 0:22:18.3] } 32. Bxf2 { [%clk 0:21:59.1] } 32... Rxc3 { [%clk 0:22:25.9] } 33. Be1 { [%clk 0:21:33.3] } 33... Rc4 { [%clk 0:22:21.7] } 34. Rxa3 { [%clk 0:21:36] } 34... Rxd4 { [%clk 0:22:29.9] } 35. Ra8+ { [%clk 0:21:40.7] } 35... Kh7 { [%clk 0:22:32.6] } 36. Ra7 { [%clk 0:21:40.3] } 36... Bxb4 { [%clk 0:22:39.6] } 37. Bxb4 { [%clk 0:21:45.5] } 37... Rxb4 { [%clk 0:22:48.2] } 38. Rxf7 { [%clk 0:21:54.4] } 38... Rb1+ { [%clk 0:22:49] } 39. Ke2 { [%clk 0:21:48.5] } 39... Rb2+ { [%clk 0:22:56.6] } 40. Kd1 { [%clk 0:21:54.5] } 40... Rxh2 { [%clk 0:23:02.3] } 41. Rb7 { [%clk 0:22:01.6] } 41... Rg2 { [%clk 0:22:57.2] } 42. Rxb6 { [%clk 0:22:09.1] } 42... Rxg3 { [%clk 0:23:04.9] } 43. Rxe6 { [%clk 0:22:17.6] } 43... h5 { [%clk 0:22:59.2] } 44. Re5 { [%clk 0:22:09.9] } 44... h4 { [%clk 0:23:08] } 45. Rh5+ { [%clk 0:22:17.4] } 45... Kg8 { [%clk 0:23:09.5] } 46. Rxh4 { [%clk 0:22:24.7] } 46... g5 { [%clk 0:23:18.4] } 47. Rh1 { [%clk 0:22:22] } 47... g4 { [%clk 0:23:08.5] } 48. Ke2 { [%clk 0:22:27.8] } 48... Ra3 { [%clk 0:23:11.1] } 49. Kf2 { [%clk 0:22:34.4] } 49... Kg7 { [%clk 0:23:18.5] } 50. Rh4 { [%clk 0:22:40.4] } 50... g3+ { [%clk 0:23:04.7] } 51. Kg2 { [%clk 0:22:47.8] } 51... Kg6 { [%clk 0:22:39.4] } 52. Rg4+ { [%clk 0:22:55] } 52... Kf5 { [%clk 0:22:38] } 53. Rxg3 { [%clk 0:23:03.3] } 53... Ra2+ { [%clk 0:22:40.5] } 54. Kh3 { [%clk 0:23:09.8] } 54... Kf4 { [%clk 0:22:41.8] } 55. Rg4+ { [%clk 0:23:11.7] } 55... Kf5 { [%clk 0:22:43.9] } 56. Kg3 { [%clk 0:23:09.6] } 56... Ra3+ { [%clk 0:22:50.7] } 57. Kh4 { [%clk 0:23:15.9] } 57... Rb3 { [%clk 0:22:32.8] } 1/2-1/2

[Event "Live Chess"]
[Site "Chess.com"]
[Date "2021.02.28"]
[Round "-"]
[White "Barron-Majerik, Alexander"]
[Black "Bell, Hunter"]
[Result "0-1"]
[BlackElo "844"]
[CurrentPosition "r1b1k2r/ppp2ppp/2p5/8/2B1P1Pq/2N5/PPPP1bP1/R1BQ1R1K w kq -"]
[ECO "C42"]
[ECOUrl "https://www.chess.com/openings/Petrovs-Defense-Classical-Stafford-Gambit"]
[EndDate "2021.02.28"]
[EndTime "11:19:59"]
[Link "https://www.chess.com/live/game/8249681025"]
[StartTime "11:14:18"]
[Termination "ScientificBobcat0 won by checkmate"]
[TimeControl "1500+10"]
[Timezone "UTC"]
[UTCDate "2021.02.28"]
[UTCTime "11:14:18"]
[WhiteElo "1010"]

1. e4 { [%clk 0:25:10] } 1... e5 { [%clk 0:25:10] } 2. Nf3 { [%clk 0:25:16.6] } 2... Nf6 { [%clk 0:25:17.8] } 3. Nxe5 { [%clk 0:25:24.4] } 3... Nc6 { [%clk 0:25:24.6] } 4. Nxc6 { [%clk 0:25:32.6] } 4... dxc6 { [%clk 0:25:32.3] } 5. Nc3 { [%clk 0:25:41.4] } 5... Bc5 { [%clk 0:24:39.7] } 6. Bc4 { [%clk 0:25:45.6] } 6... Ng4 { [%clk 0:24:39] } 7. O-O { [%clk 0:25:39.7] } 7... Qh4 { [%clk 0:24:42.8] } 8. h3 { [%clk 0:25:23.3] } 8... Bxf2+ { [%clk 0:23:52.8] } 9. Kh1 { [%clk 0:24:39] } 9... Qg3 { [%clk 0:23:42.9] } 10. hxg4 { [%clk 0:24:08.3] } 10... Qh4# { [%clk 0:23:36.3] } 0-1

[Event "Live Chess"]
[Site "Chess.com"]
[Date "2021.02.28"]
[Round "-"]
[White "Kitaev, Daniel"]
[Black "Heron, Sophie"]
[Result "1-0"]
[BlackElo "1234"]
[CurrentPosition "8/2p5/4Q3/3B1k2/1p3P1p/4B2P/1PP5/2K5 b - -"]
[ECO "B01"]
[ECOUrl "https://www.chess.com/openings/Scandinavian-Defense-Mieses-Kotrc-Variation-3.Nc3-Qd8"]
[EndDate "2021.02.28"]
[EndTime "11:28:16"]
[Link "https://www.chess.com/live/game/8249097675"]
[StartTime "11:05:16"]
[Termination "Ze_Yeet won by checkmate"]
[TimeControl "1500+10"]
[Timezone "UTC"]
[UTCDate "2021.02.28"]
[UTCTime "11:05:16"]
[WhiteElo "1548"]

1. e4 { [%clk 0:25:10] } 1... d5 { [%clk 0:25:10] } 2. exd5 { [%clk 0:25:09.1] } 2... Qxd5 { [%clk 0:25:11.6] } 3. Nc3 { [%clk 0:25:16.9] } 3... Qd8 { [%clk 0:25:19.1] } 4. Nf3 { [%clk 0:25:19.9] } 4... Nf6 { [%clk 0:25:25.6] } 5. Bc4 { [%clk 0:25:24.7] } 5... Bf5 { [%clk 0:25:22.2] } 6. d4 { [%clk 0:25:27.2] } 6... e6 { [%clk 0:25:20.2] } 7. h3 { [%clk 0:25:14.9] } 7... Be7 { [%clk 0:25:24.6] } 8. Be3 { [%clk 0:25:10] } 8... Nc6 { [%clk 0:25:30.6] } 9. Qd2 { [%clk 0:25:15.7] } 9... O-O { [%clk 0:25:34.1] } 10. O-O-O { [%clk 0:25:20.3] } 10... a6 { [%clk 0:25:14.9] } 11. d5 { [%clk 0:25:24.1] } 11... exd5 { [%clk 0:25:09.6] } 12. Nxd5 { [%clk 0:24:01.9] } 12... b5 { [%clk 0:25:01.3] } 13. Bb3 { [%clk 0:24:01.6] } 13... a5 { [%clk 0:23:28.4] } 14. a4 { [%clk 0:22:49.1] } 14... b4 { [%clk 0:22:03.4] } 15. Qe2 { [%clk 0:22:39.4] } 15... Qc8 { [%clk 0:21:43.4] } 16. Qb5 { [%clk 0:22:07.6] } 16... Ra6 { [%clk 0:19:19.8] } 17. Qxc6 { [%clk 0:20:33.3] } 17... Rxc6 { [%clk 0:18:58.5] } 18. Nxe7+ { [%clk 0:20:39.5] } 18... Kh8 { [%clk 0:19:06.7] } 19. Nxc8 { [%clk 0:20:49.4] } 19... Rxc8 { [%clk 0:19:11] } 20. Nd4 { [%clk 0:20:47.7] } 20... Rc5 { [%clk 0:19:01.7] } 21. Nxf5 { [%clk 0:20:47.5] } 21... Rxf5 { [%clk 0:19:09.3] } 22. Bxf7 { [%clk 0:20:49.7] } 22... Rb8 { [%clk 0:18:51.3] } 23. Ba7 { [%clk 0:20:44.7] } 23... Ra8 { [%clk 0:18:54.9] } 24. Bb3 { [%clk 0:20:40.4] } 24... h6 { [%clk 0:18:51.4] } 25. Be3 { [%clk 0:20:42.2] } 25... Ne4 { [%clk 0:17:59.1] } 26. Bd5 { [%clk 0:20:40.9] } 26... Rd8 { [%clk 0:17:09.2] } 27. Bxe4 { [%clk 0:20:42.1] } 27... Rxd1+ { [%clk 0:17:17.1] } 28. Rxd1 { [%clk 0:20:52] } 28... Re5 { [%clk 0:17:26.3] } 29. Bf3 { [%clk 0:20:59.9] } 29... Re8 { [%clk 0:17:32.8] } 30. Rd5 { [%clk 0:21:09] } 30... Ra8 { [%clk 0:17:33.3] } 31. Rb5 { [%clk 0:21:11.3] } 31... Ra6 { [%clk 0:17:38.5] } 32. Bb7 { [%clk 0:21:16.7] } 32... Rf6 { [%clk 0:17:36.9] } 33. Be4 { [%clk 0:21:24.1] } 33... Rf8 { [%clk 0:17:28.1] } 34. Rxa5 { [%clk 0:21:30.9] } 34... Rb8 { [%clk 0:17:34.9] } 35. Ra8 { [%clk 0:21:40.8] } 35... Rxa8 { [%clk 0:17:43.2] } 36. Bxa8 { [%clk 0:21:50.7] } 36... g5 { [%clk 0:17:51.1] } 37. Bd5 { [%clk 0:22:00.6] } 37... h5 { [%clk 0:17:58.2] } 38. a5 { [%clk 0:22:09.9] } 38... Kg7 { [%clk 0:18:06.4] } 39. a6 { [%clk 0:22:18.7] } 39... Kf6 { [%clk 0:18:15.7] } 40. a7 { [%clk 0:22:27.9] } 40... g4 { [%clk 0:18:24.4] } 41. a8=Q { [%clk 0:22:37.8] } 41... gxh3 { [%clk 0:18:33.2] } 42. Qc6+ { [%clk 0:22:47.6] } 42... Ke5 { [%clk 0:18:41.9] } 43. gxh3 { [%clk 0:22:57.5] } 43... h4 { [%clk 0:18:50.8] } 44. f4+ { [%clk 0:23:06.7] } 44... Kf5 { [%clk 0:18:58.3] } 45. Qe6# { [%clk 0:23:14.5] } 1-0

[Event "Live Chess"]
[Site "Chess.com"]
[Date "2021.02.28"]
[Round "?"]
[White "Arya, Aadit"]
[Black "Kumar, Ishan"]
[Result "0-1"]
[ECO "C50"]
[WhiteElo "1410"]
[BlackElo "1486"]
[PlyCount "130"]
[EventDate "2021.??.??"]
[TimeControl "1500+10"]
[WhiteClock "0:29:04"]
[BlackClock "0:27:26"]

{[%evp 0,73,21,5,43,20,13,28,16,10,10,5,14,3,13,1,2,16,58,-2,32,40,35,22,18,-2,
9,-12,0,-8,76,-2,1,-3,5,6,7,-21,6,3,-1,-18,6,-20,12,-45,-51,-53,-53,-54,-30,
-43,-33,-33,-17,-39,13,-3,59,37,68,67,127,111,117,0,113,0,110,-2,0,0,-25,-38,
-33,-58]} 1. e4 {[%emt 0:00:00]} e5 {[%emt 0:00:00]} 2. Nf3 {[%emt 0:00:03]}
Nc6 {[%emt 0:00:08]} 3. Bc4 {[%emt 0:00:03]} Bc5 {[%emt 0:00:05]} 4. O-O {
[%emt 0:00:05]} Nf6 {[%emt 0:00:24]} 5. Nc3 {[%emt 0:00:11]} O-O {[%emt 0:00:
37]} 6. d3 {[%emt 0:00:03]} h6 {[%emt 0:00:06]} 7. h3 {[%emt 0:00:08]} d6 {
[%emt 0:00:03]} 8. Be3 {[%emt 0:00:03]} Nd4 {[%emt 0:00:19]} 9. a3 {[%emt 0:00:
11]} Nxf3+ {[%emt 0:00:11]} 10. Qxf3 {[%emt 0:00:02]} Bxe3 {[%emt 0:00:03]} 11.
fxe3 {[%emt 0:00:02]} Be6 {[%emt 0:00:06]} 12. Nd5 {[%emt 0:00:21]} Nxd5 {
[%emt 0:00:15]} 13. exd5 {[%emt 0:00:05]} Bd7 {[%emt 0:00:02]} 14. d4 {[%emt 0:
00:09]} f6 {[%emt 0:00:05]} 15. Bd3 {[%emt 0:00:06]} Qe7 {[%emt 0:00:08]} 16.
Qg3 {[%emt 0:00:10]} e4 {[%emt 0:00:27]} 17. Be2 {[%emt 0:00:10]} f5 {[%emt 0:
00:03]} 18. Bh5 {[%emt 0:00:17]} Qg5 {[%emt 0:00:13]} 19. Qxg5 {[%emt 0:00:08]}
hxg5 {[%emt 0:00:03]} 20. Rae1 {[%emt 0:00:11]} Be8 {[%emt 0:00:19]} 21. Bd1 {
[%emt 0:00:14]} Bg6 {[%emt 0:00:05]} 22. g4 {[%emt 0:00:03]} f4 {[%emt 0:00:32]
} 23. c4 {[%emt 0:00:08]} f3 {[%emt 0:00:26]} 24. Kf2 {[%emt 0:00:31]} Be8 {
[%emt 0:00:06]} 25. b4 {[%emt 0:00:09]} Bd7 {[%emt 0:00:06]} 26. Bb3 {[%emt 0:
00:08]} a6 {[%emt 0:00:13]} 27. c5 {[%emt 0:00:02]} Kh8 {[%emt 0:00:07]} 28.
Rh1 {[%emt 0:00:07]} g6 {[%emt 0:00:20]} 29. h4 {[%emt 0:00:02]} Bxg4 {[%emt 0:
00:03]} 30. hxg5+ {[%emt 0:00:02]} Bh5 {[%emt 0:00:02]} 31. cxd6 {[%emt 0:00:
12]} cxd6 {[%emt 0:00:02]} 32. Rh4 {[%emt 0:00:03]} Rae8 {[%emt 0:00:08]} 33.
Ba4 {[%emt 0:00:04]} Re7 {[%emt 0:00:03]} 34. b5 {[%emt 0:00:06]} Rf5 {[%emt 0:
00:06]} 35. bxa6 {[%emt 0:00:05]} bxa6 {[%emt 0:00:03]} 36. Bc6 {[%emt 0:00:01]
} Rxg5 {[%emt 0:00:03]} 37. Rg1 {[%emt 0:00:09]} Rxg1 {[%emt 0:00:05]} 38. Kxg1
{[%emt 0:00:01]} Kg7 {[%emt 0:00:13]} 39. Kf2 {[%emt 0:00:02]} Kh6 {[%emt 0:00:
10]} 40. Rf4 {[%emt 0:00:37]} Kg5 {[%emt 0:00:19]} 41. Kg3 {[%emt 0:00:06]} a5
{[%emt 0:00:12]} 42. a4 {[%emt 0:00:02]} Kh6 {[%emt 0:00:38]} 43. Rf6 {[%emt 0:
00:03]} Kg7 {[%emt 0:00:03]} 44. Rxd6 {[%emt 0:00:02]} Rf7 {[%emt 0:00:01]} 45.
Kf2 {[%emt 0:00:07]} g5 {[%emt 0:00:02]} 46. Rd7 {[%emt 0:00:02]} g4 {[%emt 0:
00:04]} 47. Rxf7+ {[%emt 0:00:02]} Kxf7 {[%emt 0:00:02]} 48. d6 {[%emt 0:00:04]
} Ke6 {[%emt 0:00:03]} 49. d7 {[%emt 0:00:02]} Ke7 {[%emt 0:00:01]} 50. d5 {
[%emt 0:00:01]} Bf7 {[%emt 0:00:05]} 51. d6+ {[%emt 0:00:01]} Kd8 {[%emt 0:00:
02]} 52. Bxe4 {[%emt 0:00:05]} Be6 {[%emt 0:00:04]} 53. Bc6 {[%emt 0:00:22]}
Bxd7 {[%emt 0:00:02]} 54. Bxd7 {[%emt 0:00:03]} Kxd7 {[%emt 0:00:02]} 55. e4 {
[%emt 0:00:04]} Kxd6 {[%emt 0:00:01]} 56. Ke3 {[%emt 0:00:02]} Ke5 {[%emt 0:00:
02]} 57. Kd3 {[%emt 0:00:23]} f2 {[%emt 0:00:03]} 58. Ke2 {[%emt 0:00:02]} g3 {
[%emt 0:00:02]} 59. Kf1 {[%emt 0:00:01]} Kxe4 {[%emt 0:00:02]} 60. Kg2 {
[%emt 0:00:01]} Ke3 {[%emt 0:00:02]} 61. Kf1 {[%emt 0:00:01]} g2+ {[%emt 0:00:
02]} 62. Kxg2 {[%emt 0:00:02]} Ke2 {[%emt 0:00:01]} 63. Kg3 {[%emt 0:00:00]}
f1=Q {[%emt 0:00:01]} 64. Kg4 {[%emt 0:00:00]} Qf3+ {[%emt 0:00:02]} 65. Kg5 {
[%emt 0:00:01]} Ke3 {[%emt 0:00:01] ISK_GA won by resignation} 0-1